{"text_format":"1","workbook":"xlsx","n_sheets":1,"sheets":["Umzugsgutliste A-Z"],"not_rendered":{"charts":0,"images":1,"macros":0,"external_links":0,"defined_names":2,"comments":0,"pivot_tables":0},"unopened":[],"bounds":{"document_bytes":16777216,"sheet_cells":100000,"rows_first":2000,"rows_last":500,"rows_between":2000,"halvings":0,"cell_chars":16384,"cell_head_chars":4096},"cells_cut":0,"cells_raw":0,"read":"whole","date_system":"1900"}

{"sheet":"Umzugsgutliste A-Z","index":0,"n_rows":122,"n_cols":11,"rows_kept":122,"cut":false,"hidden":false,"merged":[[8,0,9,0],[8,1,9,1],[8,2,9,2],[5,0,5,10],[8,7,9,7],[110,4,110,6],[113,8,113,10],[2,1,2,4],[3,1,3,4],[1,1,1,4],[0,1,0,4],[4,1,4,4],[119,0,119,4],[117,8,117,9],[8,8,9,8],[6,0,6,10],[8,6,9,6],[121,2,121,4],[121,8,121,10],[114,2,114,4],[114,8,114,10],[115,0,115,10]]}
["Unternehmer:",null,null,null,null,null,"Die in dieser Liste aufgeführten"]
["Anfrage Datum:",null,null,null,null,null,"Raumeinheiten (RE) beziehen sich"]
["Auftraggeber:",null,null,null,null,null," auf übliche Möbelgrößen und sind "]
["Umzug von:",null,null,null,null,null,"verbindliche Pauschalwerte."]
["Umzug nach:",null,null,null,null,null,"1 RE entspricht 0,1 cbm, 10 RE = 1 Kubikmeter (cbm)"]
[]
["Umzugsgutliste"]
[]
["Gegenstand","RE","Anzahl","RE","Montage/",null,"Gegenstand","RE","Anzahl","RE","Montage/"]
[null,null,null,"gesamt","Bemerkungen",null,null,null,null,"gesamt","Bemerkungen"]
["Aktenschrank, je angef. m",8,null,{"$f":"IF(B11*C11<1,\"\",B11*C11)","v":""},null,null,"Übertrag:",null,null,{"$f":"IF(D66<1,\"\",D66)","v":""},"Seite: 1"]
["Alibert/Spiegelschrank etc.",2,null,{"$f":"IF(B12*C12<1,\"\",B12*C12)","v":""},null,null,"Musikschrank / Turm",4,null,{"$f":"IF(H12*I12<1,\"\",H12*I12)","v":""}]
["Anbauwand b. 38 cm, je m",8,null,{"$f":"IF(B13*C13<1,\"\",B13*C13)","v":""},null,null,"Nachttisch",2,null,""]
["Anbauwand ü. 38 cm, je m",10,null,"",null,null,"Nähmaschine (Schrank)",4,null,""]
["Anrichte, je m",4,null,"",null,null,"PC, komplett",4,null,""]
["Autoreifen, je Satz (4)",2,null,"",null,null,"Pflanzen etc. klein",2,null,""]
["Besenschrank",6,null,"",null,null,"Pflanzen etc. groß",4,null,""]
["Bett, Doppel, komplett",20,null,"",null,null,"Rasenmäher, Hand",2,null,""]
["Bett, Einzel, komplett",10,null,"",null,null,"Rasenmäher, Motor",5,null,""]
["Bett, Etagen, komplett",16,null,"",null,null,"Regal, zerlegbar, je m",4,null,""]
["Bett, Franz., komplett",15,null,"",null,null,"Schlitten",2,null,""]
["Bett, Kinder, komplett",5,null,"",null,null,"Schrank, bis 2 Türen, nicht zerlegb.",15,null,""]
["Bettumbau",3,null,"",null,null,"Schrank 1m, nicht zerlegbar",10,null,""]
["Bettzeug, je Einheit",3,null,"",null,null,"Schrank, zerlegbar, je m",8,null,""]
["Bilder, bis 0,5 m",1,null,"",null,null,"Schreibpult",7,null,""]
["Bilder, über 0,5 m",2,null,"",null,null,"Schreibtisch, bis 1,6m",12,null,""]
["Blumenkübel/Planzschalen",1,null,"",null,null,"Schreibtisch, über 1,6m",17,null,""]
["Brücke",1,null,"",null,null,"Schreibtischstuhl",3,null,""]
["Bücherregal, zerlegbar, je m",4,null,"",null,null,"Schubkarre",4,null,""]
["Buffet, mit Aufsatz",18,null,"",null,null,"Schuhschrank, klein",2,null,""]
["Buffet, ohne Aufsatz",15,null,"",null,null,"Schuhschrank",4,null,""]
["Bügelbrett",1,null,"",null,null,"Sekretär, klein",5,null,""]
["Deckenlampe, System",2,null,"",null,null,"Sekretär, mittel",8,null,""]
["Decken-/Wandlampe",1,null,"",null,null,"Sekretär, groß",12,null,""]
["Dreirad",2,null,"",null,null,"Sessel, ohne Armlehnen",4,null,""]
["Eckbank, je Sitz",2,null,"",null,null,"Sessel, mit  Armlehnen",8,null,""]
["Fahrrad",5,null,"",null,null,"Sideboard, klein",6,null,""]
["Fernseher",3,null,"",null,null,"Sideboard, groß",12,null,""]
["Flügel",20,null,"",null,null,"Sitzlandschaft (Element), je Sitz",4,null,""]
["Frisierkommode mit Spiegel",6,null,"",null,null,"Ski (Paar)",2,null,""]
["Geschirrspülmaschine",5,null,"",null,null,"Sofa, je Sitz",4,null,""]
["Hausbar",5,null,"",null,null,"Sonnenschirm",2,null,""]
["Heimorgel",10,null,"",null,null,"Spiegel, bis 0,8m",1,null,""]
["Herd",5,null,"",null,null,"Spiegel, über 0,8m",2,null,""]
["Hut-/Kleiderablage",2,null,"",null,null,"Spielzeugkiste",4,null,""]
["Kinderrad",2,null,"",null,null,"Spüle (90 o. 100 cm)",8,null,""]
["Kinderwagen",5,null,"",null,null,"Standuhr",4,null,""]
["Klapptisch/Klappstuhl",2,null,"",null,null,"Staubsauger",1,null,""]
["Klavier",15,null,"",null,null,"Stehlampe",2,null,""]
["Koffer",1,null,"",null,null,"Stereoanlage",4,null,""]
["Kommode, etc., kl.",3,null,"",null,null,"Stuhl / Hocker",2,null,""]
["Kommode, etc., mittel",5,null,"",null,null,"Stuhl, mit Armlehnen",3,null,""]
["Kommode, etc. groß",7,null,"",null,null,"Surfbrett (mit Zubehör)",12,null,""]
["Küchenschrank, Oberteil, je",4,null,"",null,null,"Teewagen, nicht zerlegbar",4,null,""]
["Küchenschrank, Unterteil, je",4,null,"",null,null,"Teppich",3,null,""]
["Küchenseitenschrank",8,null,"",null,null,"Tisch, bis 0,6m",4,null,""]
["Kühlschrank/Truhe, bis 120 l",5,null,"",null,null,"Tisch, bis 1m",5,null,""]
["Kühlschrank/Truhe, über 120 l",10,null,"",null,null,"Tisch, bis 1,2m",6,null,""]
["Laufgitter",1,null,"",null,null,"Tisch, über 1,2m ",8,null,""]
["Leiter, je",2,null,"",null,null,"Tischtennisplatte",3,null,""]
["Liege, je Sitz",4,null,"",null,null,"Toilettenschrank",3,null,""]
["Lüster",5,null,"",null,null,"Trimmrad etc.",7,null,""]
["Moped / Motorrad",8,null,{"$f":"IF(B63*C63<1,\"\",B63*C63)","v":""},null,null,"Truhe (Holz)",7,null,""]
["Vitrine/Glasvitrine, klein",4,null,{"$f":"IF(B64*C64<1,\"\",B64*C64)","v":""},null,null,"Faltkiste, bis 80 l, für Zerbrechl.",1,null,{"$f":"IF(H64*I64<1,\"\",H64*I64)","v":""}]
["Vitrine/Glasvitrine, mittel",6,null,{"$f":"IF(B65*C65<1,\"\",B65*C65)","v":""},null,null,"Faltkiste, bis 80 l, für Zerbrechl.",1,null,""]
["Übertrag:",null,null,{"$f":"IF(SUM(D11:D63)<1,\"\",(SUM(D11:D63)))","v":""},null,null,"Übertrag:",null,null,{"$f":"IF(SUM(J11:J63)<1,\"\",(SUM(J11:J63)))","v":""}]
["Übertrag:",null,null,{"$f":"IF(J66<1,\"\",J66)","v":""},null,null,"Übertrag:",null,null,{"$f":"IF(D107<1,\"\",D107)","v":""},"Seite: 2"]
["Vitrine/Glasvitrine, groß",10,null,"",null,null,"Faltkiste, bis 80 l, für Sonstiges",1,null,""]
["Wäschepuff",2,null,"",null,null,"Faltkiste, bis 80 l, für Sonstiges",1,null,""]
["Wäschetruhe",3,null,"",null,null,"Faltkiste, bis 80 l, für Sonstiges",1,null,""]
["Waschmaschine",5,null,"",null,null,"Faltkiste, über 80 l, für Zerbrechl.",1.5,null,""]
["Wäschetrockner",5,null,"",null,null,"Faltkiste, über 80 l, für Zerbrechl.",1.5,null,""]
["Werkbank, zerlegbar",4,null,"",null,null,"Faltkiste, über 80 l, für Zerbrechl.",1.5,null,""]
["Werkzeugschrank",2,null,"",null,null,"Faltkiste, über 80 l, für Wäsche/Sonst.",1.5,null,""]
["Werkzeugkoffer",1,null,"",null,null,"Faltkiste, über 80 l, für Wäsche/Sonst.",1.5,null,""]
["div. Kleingut",10,null,"",null,null,"Faltkiste, über 80 l, für Wäsche/Sonst.",1.5,null,""]
["div. Kleingut",25,null,"",null,null,"Faltkiste, über 80 l, für Wäsche/Sonst.",1.5,null,""]
["Gardinen",2,null,"",null,null,"Faltkiste, über 80 l, für Wäsche/Sonst.",1.5,null,""]
["Empore",4,null,"",null,null,"Faltkiste, über 80 l, für Wäsche/Sonst.",1.5,null,""]
[null,null,null,"",null,null,"Kleiderkarton",6,null,""]
["Garderobe",1,null,"",null,null,"Projektkarton mit Einsatz",1.5,null,""]
["Bücherregal, nicht zerlegbar",12,null,"",null,null,"Lampenkarton"]
["EDV-Anlage",5,null,"",null,null,"Fernsehertransportkiste"]
["Mikrowelle",2,null,"",null,null,"Kartonzuschnitte"]
["Gepackte Kartons",1.5,null,"",null,null,"Flaschenhülsen, Stck."]
["Matratze",4,null,"",null,null,"Bilderecke, Variabel, Stck."]
["Deckenventilator",4,null,"",null,null,"Papierdecke, Stck."]
["Deckenventilator",2,null,"",null,null,"Luftpolsterfolie, qm"]
[null,null,null,"",null,null,"Couchhülle, Stck."]
[null,null,null,"",null,null,"Sesselhülle, Stck."]
[null,null,null,"",null,null,"Bettensack, Stck"]
[null,null,null,"",null,null,"Matratzenhülle, Stck."]
[null,null,null,"",null,null,"Matratzenkarton, Stck."]
[null,null,null,"",null,null,"Fahrradkarton, Stck."]
[null,null,null,"",null,null,"Seidenpapier, kg"]
[null,null,null,"",null,null,"Klebeband, Rll."]
[null,null,null,"",null,null,"Stretchfolie, Rll."]
[null,null,null,"",null,null,"Wellpappe, Rll."]
[null,null,null,"",null,null,"Gläserpapier, Bogen"]
[null,null,null,"",null,null,"Tellerpapier, Bogen"]
[null,null,null,"",null,null,"EDV-Karton/Container, Stck."]
[null,null,null,"",null,null,"Barrel, Stck.",0,null,""]
[null,null,null,"",null,null,null,null,null,""]
[null,null,null,"",null,null,null,null,null,""]
[null,null,null,"",null,null,null,null,null,""]
[null,null,null,"",null,null,null,null,null,""]
["Übertrag:",null,null,{"$f":"IF(SUM(D67:D106)<1,\"\",(SUM(D67:D106)))","v":""},null,null,"Gesamt-Summe:",null,null,{"$f":"IF(SUM(J67:J106)<1,\"\",(SUM(J67:J106)))","v":""}]
[]
[null,null,null,null,null,null,"Gesamtsumme:","=",{"$f":"J107","v":""},"RE"]
[]
[null,null,null,null,"Gesamt-Transportvolumen:",null,null,"=",{"$f":"IF(I109=\"\",\"\",I109/10)","v":""},"cbm"]
[]
[]
[]
["Ort",null,"Datum",null,null,null,"Auftraggeber",null,"Auftragnehmer"]
["Ergeben sich zu Beginn der Beförderung Änderungen, so ist die Liste zu berichtigen. Diese Liste wurde geändert auf:"]
[]
[null,null,null,null,null,null,"Gesamtvolumen:",null,null,null,"cbm"]
[]
["Die Änderung des Volumens wird bestätigt!"]
[]
["Ort",null,"Datum",null,null,null,"Auftraggeber",null,"Auftragnehmer/Transportleiter"]